Cogmind - Beta 14 @@@ ROGUE MODE // 2024.10.11 @ 10:57:24 Player: Rico Result: Self-destructed Performance ------------- Evolutions (1) 500 Regions Visited (4) 800 Robots Destroyed (19) 95 Value Destroyed (387) 387 Prototype IDs (0) 0 Alien Tech Used (0) 0 Bonus (555) 555 TOTAL SCORE: 2337 Bonus ------- Met Imprinter 300 Was Imprinted 300 Friendly Fire -45 Cogmind --------- Core Integrity 365/400 Matter 259/300 Energy 160/160 System Corruption 1% Temperature Cool (0) Movement Treading (145) Location -7/Zion Parts ------- > --- POWER (1) -------- Light Nuclear Core > --- PROPULSION (4) --- Advanced Treads Advanced Treads Advanced Treads Advanced Treads > --- UTILITY (2) ------ Large Storage Unit Advanced Visual Processing Unit > --- WEAPON (2) ------- High-powered Shotgun Improved Grenade Launcher > --- INVENTORY (15) --- Light Treads Signal Interpreter Makeshift Terrain Scan Processor 0b10 Decoder Chip [Generic] 0b10 Decoder Chip [Looter] Makeshift ECM Suite Relay Coupler [Programmer] (86) Hacking Drone Bay Storm Laser Particle Cannon Heavy Ion Cannon Improved Grenade Launcher Peak State ------------ > --- POWER ------------ Light Nuclear Core > --- PROPULSION ------- Advanced Treads Advanced Treads Advanced Treads Advanced Treads > --- UTILITY ---------- Large Storage Unit Advanced Visual Processing Unit > --- WEAPON ----------- Heavy Ion Cannon Improved Grenade Launcher > --- INVENTORY -------- Light Treads Signal Interpreter Makeshift Terrain Scan Processor 0b10 Decoder Chip [Generic] 0b10 Decoder Chip [Looter] Makeshift ECM Suite Relay Coupler [Programmer] Hacking Drone Bay Storm Laser Particle Cannon High-powered Shotgun Improved Grenade Launcher [Rating: 32] Favorites ----------- Power Light Nuclear Core Engine Ion Engine Power Core Light Nuclear Core Propulsion Advanced Treads Treads Advanced Treads Leg Aluminum Leg Utility Large Storage Unit Storage Large Storage Unit Processor Advanced Visual Processing Unit Weapon Improved Grenade Launcher Energy Gun EM Pulse Gun Energy Cannon Particle Cannon Ballistic Gun Light Assault Rifle Launcher Improved Grenade Launcher Build | -11 -10 -9 -9 -7 ------- Run | Yrd Mat Mat Min Zio Slots Evolved 2 | . . 2 . . Power . | . . . . . Propulsion 2 | . . 2 . . Utility . | . . . . . Weapon . | . . . . . Parts Attached 25 | 6 3 13 . 3 Power 2 | 1 . 1 . . Engine 1 | 1 . . . . Core 1 | . . 1 . . Reactor . | . . . . . Propulsion 10 | 2 . 8 . . Treads 6 | . . 6 . . Leg 4 | 2 . 2 . . Wheel . | . . . . . Hover . | . . . . . Flight . | . . . . . Utility 4 | 1 1 1 . 1 Device . | . . . . . Storage 2 | 1 . 1 . . Processor 2 | . 1 . . 1 Hackware . | . . . . . Protection . | . . . . . Artifact . | . . . . . Weapon 9 | 2 2 3 . 2 Energy Gun 1 | . 1 . . . Energy Cannon 3 | . . 2 . 1 Ballistic Gun 3 | 2 . . . 1 Ballistic Cannon . | . . . . . Launcher 2 | . 1 1 . . Special Weapon . | . . . . . Impact Weapon . | . . . . . Slashing Weapon . | . . . . . Piercing Weapon . | . . . . . Special Melee Weapon . | . . . . . Unidentified Prototypes . | . . . . . Parts Lost 1 | . . 1 . . Power . | . . . . . Propulsion . | . . . . . Utility . | . . . . . Weapon 1 | . . 1 . . Highest Loss Streak 1 | . . 1 . . To Critical Strikes . | . . . . . Average Slot Usage (%) 99 | . 94 99 100 100 Engine 2 | . 14 3 . . Core 9 | . . 7 11 11 Treads 36 | . . 28 44 44 Leg 5 | . 28 15 . . Storage 11 | . 14 11 11 11 Processor 10 | . 8 11 11 11 Energy Gun 1 | . 10 1 . . Energy Cannon 9 | . . 11 11 10 Launcher 10 | . 10 9 11 11 Peak Build Rating 32 | 6 9 24 24 32 Average Rating 24 | 3 7 19 24 29 On Entrance 12 | . 6 9 24 24 Naked Turns . | . . . . . Heaviest Build 39 | 13 15 35 35 39 Greatest Support 88 | 20 20 88 88 88 Greatest Overweight (x) . | . . . . . Average Overweight (x) . | . . . . . Largest Inventory Capacity 15 | 8 8 15 15 15 Average Capacity 13 | 7 8 9 15 15 Most Carried 15 | 6 8 11 11 15 Average Carried 12 | 3 6 7 11 14 Final Capacity 15 | 8 8 15 15 15 Final Carried 15 | 4 8 11 11 15 Class Distribution -------------------- 100% | Mutant Dominant Class ---------------- Mutant | -10/Materials Mutant | -9/Materials Mutant | -9/Mines Mutant | -7/Zion Resources | -11 -10 -9 -9 -7 ----------- Run | Yrd Mat Mat Min Zio Matter Collected 695 | 235 106 204 . 150 Remotely . | . . . . . Salvage Created 420 | . 55 365 . . Parts 42 | . 6 36 . . Haulers Intercepted . | . . . . . Recyclers Shooed 1 | . . 1 . . Parts Field Recycled . | . . . . . Retrieved Matter . | . . . . . Parts Self-Destructed 4 | . . . . 4 Prevented . | . . . . . Kills | -11 -10 -9 -9 -7 ------- Run | Yrd Mat Mat Min Zio Combat Hostiles Destroyed 11 | . 2 9 . . Cannons 6 | . . 6 . . AOE 5 | . 2 3 . . Classes Destroyed 7 | . 2 5 . . Worker 2 | . . 2 . . Builder 3 | . . 3 . . Recycler 1 | . . 1 . . Watcher 2 | . 1 1 . . Swarmer 4 | . . 4 . . Grunt 3 | . 2 1 . . Sentry 4 | . . 4 . . Best Kill Streak 12 | . 2 12 . . Combat Bots Only 5 | . 2 5 . . Max Kills in Single Turn 2 | . 1 2 . . Gunslinging . | . . . . . Exploded 2 | . 1 2 . . Melee . | . . . . . Uniques/NPCs Destroyed . | . . . . . Combat | -11 -10 -9 -9 -7 -------- Run | Yrd Mat Mat Min Zio Hostile Shots Fired 60 | . 6 35 3 16 Missed 25 | . 3 15 . 7 Damage Taken 519 | . 33 334 42 110 Core 35 | . . 14 11 10 Absorbed by Shields . | . . . . . Core Remaining (%) 100 | 100 100 . . . Volleys Fired 41 | . 5 25 . 11 Largest 2 | . 2 2 . 1 Hottest 124 | . 70 124 . 68 Shots Fired 44 | . 6 27 . 11 Gun 4 | . 2 . . 2 Cannon 23 | . . 15 . 8 Launcher 17 | . 4 12 . 1 Special . | . . . . . Kinetic 2 | . . . . 2 Thermal 11 | . . 3 . 8 Explosive 17 | . 4 12 . 1 Electromagnetic 14 | . 2 12 . . Robot Hit Streak 7 | . 5 7 . . Robot Miss Streak 2 | . 1 2 . . Penetration Max . | . . . . . Secondary Targets . | . . . . . Shots Hit Robots 22 | . 5 17 . . Core Hits 29 | . 5 24 . . Critical Kills . | . . . . . Critical Parts Destroyed . | . . . . . Critical Strikes . | . . . . . Melee Attacks . | . . . . . Impact . | . . . . . Slashing . | . . . . . Piercing . | . . . . . Sneak Attacks . | . . . . . Combat Hostiles . | . . . . . Follow-up Attacks . | . . . . . Damage Inflicted 1049 | . 187 817 . 45 Guns 24 | . 24 . . . Cannons 280 | . . 280 . . Explosions 741 | . 159 537 . 45 Melee . | . . . . . Ramming 4 | . 4 . . . Kinetic . | . . . . . Thermal 83 | . . 83 . . Explosive 720 | . 159 516 . 45 Electromagnetic 242 | . 24 218 . . Impact . | . . . . . Slashing . | . . . . . Piercing . | . . . . . Highest Corruption 3 | . 3 . . . Average Corruption 2 | . 2 . . . Corruption Purged . | . . . . . Corruption Blocked . | . . . . . Effects 6 | . 6 . . . Message Errors 1 | . 1 . . . Matter Fused 3 | . 3 . . . Heat Flow Errors 1 | . 1 . . . Data Loss (major) 1 | . 1 . . . Overload Shots . | . . . . . Overflow Damage . | . . . . . Projectiles . | . . . . . Explosions . | . . . . . Melee . | . . . . . Knockbacks . | . . . . . Impact . | . . . . . Kinetic . | . . . . . Secondary . | . . . . . Self-Inflicted Damage 100 | . . 100 . . Shots 4 | . . 4 . . Rammed . | . . . . . Targets Rammed 1 | . 1 . . . Kicked 1 | . 1 . . . Crushed . | . . . . . Highest Temperature 263 | . 263 78 . 78 Average Temperature 48 | . 96 32 . 35 Received Heat Transfer 96 | . 18 54 24 . Siege Activations . | . . . . . Robots Corrupted . | . . . . . Combat Hostiles . | . . . . . Parts Fried . | . . . . . Impact Corruptions . | . . . . . Robots Melted . | . . . . . Combat Hostiles . | . . . . . Parts Melted . | . . . . . Heat Transferred 161 | . . 161 . . Parts Sabotaged . | . . . . . Parts Stolen . | . . . . . Parts Stripped . | . . . . . Power Chain Reactions 1 | . . 1 . . Alert | -11 -10 -9 -9 -7 ------- Run | Yrd Mat Mat Min Zio Peak Influence 377 | . 120 377 69 . Initial 69 | . . . 69 . Average 114 | . 26 220 69 . Maximum Alert Level 1 | . . 1 . . Low Security (%) 72 | 100 100 38 100 . Level 1 27 | . . 61 . . Level 2 . | . . . . . Level 3 . | . . . . . Level 4 . | . . . . . Level 5 . | . . . . . High Security . | . . . . . Max Security . | . . . . . Squads Dispatched 4 | . 3 1 . . Investigation 2 | . 2 . . . Extermination . | . . . . . Reinforcement 2 | . 1 1 . . Assault . | . . . . . Garrison . | . . . . . Intercept . | . . . . . Searches Triggered . | . . . . . Construction Impeded 1 | . . 1 . . Haulers Reinforced . | . . . . . Active Scanning Responses . | . . . . . Cargo Convoy Interrupts . | . . . . . Stealth | -11 -10 -9 -9 -7 --------- Run | Yrd Mat Mat Min Zio Distress Signals 2 | . . 2 . . Communications Jammed . | . . . . . Distress Signals . | . . . . . Times Spotted 26 | . 5 13 2 6 Peak Tracking Total 7 | . 3 7 2 6 Tactical Retreats . | . . . . . Traps | -11 -10 -9 -9 -7 ------- Run | Yrd Mat Mat Min Zio Traps Triggered 3 | . 3 . . . Indirectly . | . . . . . Trap Hack Attempts . | . . . . . Triggered . | . . . . . Disarmed . | . . . . . Reprogrammed . | . . . . . Reused . | . . . . . Traps Extracted . | . . . . . Installed . | . . . . . Triggered . | . . . . . Machines | -11 -10 -9 -9 -7 ---------- Run | Yrd Mat Mat Min Zio Machines Disabled 2 | . 1 . . 1 Max in Single Turn 1 | . 1 . . 1 Machines Repaired . | . . . . . Machines Dismantled . | . . . . . Machines Sabotaged . | . . . . . Overloaded Fab Kills . | . . . . . Hacking | -11 -10 -9 -9 -7 --------- Run | Yrd Mat Mat Min Zio Machines Accessed 1 | . . 1 . . Terminals 1 | . . 1 . . Fabricators . | . . . . . Repair Stations . | . . . . . Recycling Units . | . . . . . Scanalyzers . | . . . . . Garrison Access . | . . . . . Total Hacks 1 | . . 1 . . Successful 1 | . . 1 . . Failed . | . . . . . Catastrophic . | . . . . . Database Lockouts . | . . . . . Manual 3 | . . . . 3 Terminals 1 | . . 1 . . Fabricators . | . . . . . Repair Stations . | . . . . . Recycling Units . | . . . . . Scanalyzers . | . . . . . Garrison Access . | . . . . . Terminal Hacks 1 | . . 1 . . Zone Layout 1 | . . 1 . . Fabricator Hacks . | . . . . . Repair Station Hacks . | . . . . . Recycling Unit Hacks . | . . . . . Scanalyzer . | . . . . . Garrison Access Hacks . | . . . . . Unauthorized Hacks . | . . . . . Terminals . | . . . . . Fabricators . | . . . . . Repair Stations . | . . . . . Recycling Units . | . . . . . Scanalyzers . | . . . . . Garrison Access . | . . . . . Data Cores Recovered . | . . . . . Used . | . . . . . Hacking Detections . | . . . . . Full Trace Events . | . . . . . Feedback Events . | . . . . . Feedback Blocked . | . . . . . Robot Schematics Acquired . | . . . . . Robots Built . | . . . . . Authchips . | . . . . . Time . | . . . . . Total Robot Build Rating . | . . . . . Part Schematics Acquired . | . . . . . Parts Built . | . . . . . Authchips . | . . . . . Time . | . . . . . Total Part Build Rating . | . . . . . Parts Repaired . | . . . . . Time . | . . . . . Parts Recycled . | . . . . . Recycled Matter . | . . . . . Retrieved Matter . | . . . . . Retrieved Components . | . . . . . Parts Scanalyzed . | . . . . . Part Schematics Acquired . | . . . . . Parts Damaged . | . . . . . Bothacking | -11 -10 -9 -9 -7 ------------ Run | Yrd Mat Mat Min Zio Used RIF Installer . | . . . . . Robots Hacked . | . . . . . Non-combat . | . . . . . Combat . | . . . . . Robot Hacks Applied . | . . . . . Relay Couplers Released . | . . . . . Fabnet Peak Effective % . | . . . . . Robots Rewired . | . . . . . Allies Hacked . | . . . . . Hacks Repelled . | . . . . . Allies | -11 -10 -9 -9 -7 -------- Run | Yrd Mat Mat Min Zio Total Allies 4 | . . . . 4 Largest Group 4 | . . . . 4 Highest-Rated Group 153 | . . . . 153 Highest-Rated Ally 40 | . . . . 40 Total Orders . | . . . . . Ally Attacks . | . . . . . Total Damage . | . . . . . Kills . | . . . . . Allies Corrupted . | . . . . . Allies Melted . | . . . . . Intel | -11 -10 -9 -9 -7 ------- Run | Yrd Mat Mat Min Zio Robot Analysis Total . | . . . . . Derelict Logs Recovered 1 | . . . . 1 Drone Launches . | . . . . . Drone Recoveries . | . . . . . Exploration | -11 -10 -9 -9 -7 ------------- Run | Yrd Mat Mat Min Zio Turns Passed 3193 | 77 402 443 66 2205 Spaces Moved 2125 | 61 306 256 39 1463 Core 13 | 13 . . . . Treads 1670 | . . 168 39 1463 Legs 442 | 48 306 88 . . Wheels . | . . . . . Hover . | . . . . . Flight . | . . . . . Fastest Speed 50 | 50 120 120 145 145 Average Speed 139 | 105 120 136 145 145 Slowest Speed 145 | 120 120 145 145 145 Overloaded Moves . | . . . . . Propulsion Burnouts . | . . . . . Robots Hopped . | . . . . . Cave-ins Triggered . | . . . . . Exploration Rate (%) 35 | 5 50 26 6 92 Regions Visited 4 Branch Regions 2 Pre-discovered Areas 1 | . . . . 1 Known Exits Taken . | . . . . . Unknown Exits Taken 4 | 1 1 1 1 . Scrap Searched 3 | . . . . 3 Spaces Dug . | . . . . . Terrain Destroyed 101 | . 24 77 . . Melee . | . . . . . Projectile . | . . . . . AOE 101 | . 24 77 . . Terrain Rammed . | . . . . . Walls Destroyed . | . . . . . Machines Disabled . | . . . . . Actions | -11 -10 -9 -9 -7 --------- Run | Yrd Mat Mat Min Zio Total 2317 | 72 334 321 48 1542 Wait 65 | . 10 13 10 32 Move 2121 | 60 305 255 38 1463 Hop . | . . . . . Pick Up 39 | 6 7 9 . 17 Fast Attach 5 | 4 1 . . . Attach 5 | 2 . 3 . . Detach . | . . . . . Swap 15 | . 2 10 . 3 Drop 25 | . 3 6 . 16 Fire 41 | . 5 25 . 11 Melee . | . . . . . Ram . | . . . . . Kick 1 | . 1 . . . Crush . | . . . . . Escape Stasis . | . . . . . Rewire . | . . . . . Trap . | . . . . . Miscellaneous . | . . . . . Route ------- -11/Scrapyard -10/Materials -9/Materials -9/Mines -7/Zion (discovered 1 exit: [*Pro]) History --------- Turn | Location | Event 9 | -11/Scrapyard | Discovered new exit (range 13) 78 | -11/Scrapyard | Entered Materials 306 | -10/Materials | Build established: Mutant 442 | -10/Materials | Discovered new exit (range 18) 480 | -10/Materials | Entered another Materials area 480 | -9/Materials | Evolved 2 slots: Propulsion x2 875 | -9/Materials | Discovered new exit (range 7) 923 | -9/Materials | Entered Mines 924 | -9/Mines | A Derelict revealed a hidden shortcut to a safe place 989 | -9/Mines | Entered Zion 1091 | -7/Zion | Found Relay Coupler [Programmer] 1098 | -7/Zion | Found Relay Coupler [Programmer] 1100 | -7/Zion | Found Relay Coupler [Programmer] 1107 | -7/Zion | Found Relay Coupler [Programmer] 1110 | -7/Zion | Found Relay Coupler [Programmer] 1414 | -7/Zion | Learned Factory emergency access door positions 1636 | -7/Zion | Met Imprinter 1701 | -7/Zion | Imprinted 1703 | -7/Zion | Declared Zion's savior 2193 | -7/Zion | Found Prototype Energy Gun 2265 | -7/Zion | Given the Hacking Drone Bay 2274 | -7/Zion | Found Prototype Device 2397 | -7/Zion | Learned location of Quarantine (-2) 2664 | -7/Zion | Discovered new exit (range 14) 3193 | -7/Zion | Attacked by Zionites 3194 | -7/Zion | Self-destructed Last Messages --------------- 02664_ EXIT=FOUND 02832_ Dropped Hrd. Medium Armor Plating. 02832_ Acquired Hvy. Ion Cannon. 02837_ 3H-XQE(z) pokes at the Twisted Machinery. 03005_ MC-27X(z) toys with the Twisted Machinery. 03031_ 6S-3AM(z) plays with the Twisted Machinery. 03032_ 6S-3AM(z) fiddles with the Twisted Machinery. 03048_ BT-Y14(z) pokes at the Twisted Machinery. 03104_ 6S-3AM(z) fiddles with the Twisted Machinery. 03115_ Connecting with Deep Containment System... 03119_ GV-XG1(z) examines a few pieces of the Twisted Machinery. 03132_ Deep Containment System disabled. 03134_ 6S-3AM(z) pokes at the Twisted Machinery. 03158_ OR-XEH(z) toys with the Twisted Machinery. 03166_ 1I-6I9(z) fiddles with the Twisted Machinery. OR-XEH(z): If you're ever traced at a machine, try to be gone when the investigation squad arrives. Or use another terminal to send them home, ha! 03193_ PUBLIC SERVICE ANNOUNCEMENT: Zion is under attack! Defend our home! 03193_ OR-XEH(z) pulls a Mak. Hammer out of the Twisted Machinery. Map ----- +----------------------------------------------------+ | ?????????????????????????????????????????????????? | | ?????????????????????????????????????????????????? | | ?????????????????????????????????????????????????? | | ?????????????????????????????????????????????????? | | ?????????????????????????????????????????????????? | | ?????????????????????????????????????????????????? | | ?????????????????????????????????????????????????? | | ?????????????????????????????????????????????????? | | ??????????????????????####???????????????????????? | | ????????????????????##" "##??????????????????????? | | ????????????????????#!" "##?????????????????????? | | ????????????????????# ! c""#?????????????????##### | | ????????????????????#!" !""#?????????????????#"""# | | ????????????????????##" "####????????###?####" "# | | ????????????????????# "##########"###""# =# | | ????????????????????# " "#"""""""#"""""""" | | ?????????????##??#### "" """"""""""""" "" | | ?????????????#"###"##""""" """ | | ??????????????"""""""#" | | ???????????????#""""#"" """"" | | ???????????????" """ "z """""" | | ???????????????# "" """ """""" | | ??????????????## M " MM ""#"# """" | | ??????????????" !!M """"## """"" | | ??????????????" ""###"" """""""#"" | | ??????????????# M @"""##"" ""##"""""" " | | ?????????""""""" """z """""" ""##""" "" " | | ?????????"##""""""""""""" """"" ""#?##" " | | ???????????######"###""#"" ""#?##"" | | ????????????????###?#"#"" """ ""##"""""" | | ????????????????????##""" """" """"""""" " | | ????????????????????#"""" """""""" " | | ????????????????????#"" """""""" | | ????????????????????#"" """""" "" | | ???????????????????#"#" """"" " " " | | ???????????????????###" "###"" " | | ???????????????????#""" "#?#"" " """"" | | ???????????????????#""" "###"" """""""" | | ???????????????????#""" "##""" """"###"" | | ??????????????????##"" "#"" ""##??#" | | ??????????????????""" """ "" ""##????? | | ??????????????????##"" """ "" """#????? | | ?????????????????##""" """ "" "##????? | | ?????????????????#""" """" "" ""#????? | | ??????????????????#"" """ " ""##???? | | ?????????????????##"" "" ""#???? | | ?????????????????#"""" """#???? | | ?????????????????##"""" ## ## """#???? | | ??????????????????###"" # # """???? | | ????????????????????##" """ """#???? | +----------------------------------------------------+ Best States ------------- Heat Dissipation 28 Energy Generation 14 Energy Capacity 250 Matter Stores 300 Matter Capacity 300 Sight Range 20 Terrain Scan Density 10 Evasion (%) 55 Recoil Reduction 4 Item Schematics ----------------- None Robot Schematics ------------------ None Fabricated ------------ Nothing Alien Tech Used ----------------- None Achievements -------------- Robot Respite The One Challenges ------------ None Game ------ Seed HardlightSlugRefractor Manual? 0 Play Time 00:39:21 Cumulative 3.1 hours Start 2024.10.10 @ 11:58:45 End 2024.10.11 @ 10:57:24 Sessions 3 Manual Loads 0 Difficulty Rogue Special Mode None Game No. 7 Rogue 6 Adventurer 0 Explorer 1 Win Type - Total 0 Types 0/0/0/0/0/0/0/0/0 Lore% 7 Gallery% 6 Achievement% 7 Wizard Run 0 Options --------- Layout 1 ASCII 0 Keyboard 1 Movement Arrows Keybinds 0 Fullscreen 2 Font 32/Tamsyn Map View 77x35 Zoom Use 16% Tactical HUD 1 Map Filters NONE Filters NONE Steam 1 RUN: 8036ee82-40d6-419e-aa81-292c535ba9f3